[Event "Titled Tuesday Blitz August 22 Late 2023"]
[White "Grebeniuk, Semen"]
[Black "Nielsen, Viktor Haarmark"]
[WhiteFideId "14117509"]
[BlackFideId "1444492"]
[WhiteElo "2564"]
[BlackElo "2399"]
[Result "1-0"]
[Round "7"]
[TimeControl "180+1"]
[Date "2023.08.22"]
[WhiteClock "0:00:21"]
[BlackClock "0:00:00"]
[Board "109"]

1. d4 {[%clk 0:02:47]}  Nf6 {[%clk 0:02:58]} 2. Nf3 {[%clk 0:02:48]}  g6 {[%clk 0:02:58]} 3. Bg5 {[%clk 0:02:48]}  Bg7 {[%clk 0:02:56]} 4. c3 {[%clk 0:02:49]}  d5 {[%clk 0:02:56]} 5. Nbd2 {[%clk 0:02:49]}  b6 {[%clk 0:02:57]} 6. e3 {[%clk 0:02:46]}  Bb7 {[%clk 0:02:57]} 7. Be2 {[%clk 0:02:46]}  O-O {[%clk 0:02:57]} 8. O-O {[%clk 0:02:47]}  c5 {[%clk 0:02:58]} 9. b4 {[%clk 0:02:47]}  Nc6 {[%clk 0:02:54]} 10. Rb1 {[%clk 0:02:47]}  cxb4 {[%clk 0:02:50]} 11. cxb4 {[%clk 0:02:48]}  Rc8 {[%clk 0:02:47]} 12. Qa4 {[%clk 0:02:47]}  a5 {[%clk 0:02:40]} 13. b5 {[%clk 0:02:18]}  Nb8 {[%clk 0:02:33]} 14. Ne5 {[%clk 0:02:14]}  Nbd7 {[%clk 0:02:29]} 15. Nc6 {[%clk 0:02:14]}  Qe8 {[%clk 0:02:26]} 16. Rfc1 {[%clk 0:02:09]}  h6 {[%clk 0:02:23]} 17. Bf4 {[%clk 0:02:04]}  Ne4 {[%clk 0:02:00]} 18. Nxe4 {[%clk 0:02:03]}  dxe4 {[%clk 0:02:01]} 19. Qa3 {[%clk 0:01:58]}  Bxc6 {[%clk 0:01:10]} 20. bxc6 {[%clk 0:01:58]}  Nf6 {[%clk 0:01:10]} 21. Bb5 {[%clk 0:01:25]}  Qd8 {[%clk 0:00:53]} 22. h3 {[%clk 0:01:20]}  Nd5 {[%clk 0:00:52]} 23. Bg3 {[%clk 0:01:19]}  Nc7 {[%clk 0:00:31]} 24. Be2 {[%clk 0:01:15]}  Rb8 {[%clk 0:00:28]} 25. Qc3 {[%clk 0:01:10]}  Qc8 {[%clk 0:00:24]} 26. Qc2 {[%clk 0:01:01]}  f5 {[%clk 0:00:22]} 27. a4 {[%clk 0:01:00]}  Kh7 {[%clk 0:00:21]} 28. Rb3 {[%clk 0:00:54]}  e5 {[%clk 0:00:19]} 29. dxe5 {[%clk 0:00:52]}  Re8 {[%clk 0:00:20]} 30. Qb2 {[%clk 0:00:39]}  Nd5 {[%clk 0:00:16]} 31. Bb5 {[%clk 0:00:32]}  Qc7 {[%clk 0:00:13]} 32. Rd1 {[%clk 0:00:28]}  Nb4 {[%clk 0:00:12]} 33. Rd7 {[%clk 0:00:28]}  Qc8 {[%clk 0:00:08]} 34. e6 {[%clk 0:00:26]}  Rg8 {[%clk 0:00:07]} 35. Be5 {[%clk 0:00:25]}  Qf8 {[%clk 0:00:07]} 36. Rf7 {[%clk 0:00:22]}  Nd3 {[%clk 0:00:00]} 37. Bxd3 {[%clk 0:00:21]} 1-0


[Site "https://www.chess.com"]

[Event "Titled Tuesday Blitz August 22 Late 2023"]
[White "Bilan, Danila"]
[Black "Figorito, Nick"]
[WhiteFideId "24161918"]
[BlackFideId "30923689"]
[WhiteElo "2488"]
[BlackElo "2346"]
[Result "1-0"]
[Round "7"]
[TimeControl "180+1"]
[Date "2023.08.22"]
[WhiteClock "0:00:40"]
[BlackClock "0:00:04"]
[Board "113"]

1. d4 {[%clk 0:03:00]}  Nf6 {[%clk 0:03:00]} 2. Nf3 {[%clk 0:03:00]}  g6 {[%clk 0:03:00]} 3. Bg5 {[%clk 0:02:58]}  Bg7 {[%clk 0:03:01]} 4. c3 {[%clk 0:02:58]}  O-O {[%clk 0:03:01]} 5. Nbd2 {[%clk 0:02:59]}  d5 {[%clk 0:03:01]} 6. e3 {[%clk 0:02:59]}  Bf5 {[%clk 0:03:01]} 7. Be2 {[%clk 0:02:56]}  c6 {[%clk 0:03:01]} 8. Ne5 {[%clk 0:02:56]}  Nbd7 {[%clk 0:03:00]} 9. f4 {[%clk 0:02:56]}  Ne4 {[%clk 0:02:56]} 10. Nxd7 {[%clk 0:02:48]}  Qxd7 {[%clk 0:02:53]} 11. O-O {[%clk 0:02:48]}  Nxg5 {[%clk 0:02:40]} 12. fxg5 {[%clk 0:02:49]}  e5 {[%clk 0:02:36]} 13. Nf3 {[%clk 0:02:42]}  exd4 {[%clk 0:02:31]} 14. exd4 {[%clk 0:02:36]}  Bg4 {[%clk 0:02:28]} 15. Nd2 {[%clk 0:02:19]}  Bxe2 {[%clk 0:02:24]} 16. Qxe2 {[%clk 0:02:20]}  Rae8 {[%clk 0:02:24]} 17. Qd3 {[%clk 0:02:09]}  Qg4 {[%clk 0:02:17]} 18. Nf3 {[%clk 0:02:09]}  Re4 {[%clk 0:02:12]} 19. Rae1 {[%clk 0:01:55]}  Rfe8 {[%clk 0:02:12]} 20. Qd2 {[%clk 0:01:46]}  b5 {[%clk 0:01:43]} 21. Qf2 {[%clk 0:01:42]}  a5 {[%clk 0:01:26]} 22. Ne5 {[%clk 0:01:30]}  Qe6 {[%clk 0:00:51]} 23. Rxe4 {[%clk 0:01:22]}  dxe4 {[%clk 0:00:49]} 24. Qxf7+ {[%clk 0:01:20]}  Qxf7 {[%clk 0:00:46]} 25. Nxf7 {[%clk 0:01:21]}  e3 {[%clk 0:00:25]} 26. Nh6+ {[%clk 0:01:18]}  Bxh6 {[%clk 0:00:23]} 27. gxh6 {[%clk 0:01:19]}  b4 {[%clk 0:00:19]} 28. Re1 {[%clk 0:01:11]}  bxc3 {[%clk 0:00:17]} 29. bxc3 {[%clk 0:01:11]}  a4 {[%clk 0:00:12]} 30. Kf1 {[%clk 0:01:07]}  a3 {[%clk 0:00:08]} 31. Ke2 {[%clk 0:00:56]}  Rb8 {[%clk 0:00:07]} 32. Kxe3 {[%clk 0:00:56]}  Rb2 {[%clk 0:00:08]} 33. Re2 {[%clk 0:00:53]}  Kf7 {[%clk 0:00:08]} 34. Kd3 {[%clk 0:00:53]}  Rb1 {[%clk 0:00:06]} 35. Kc4 {[%clk 0:00:47]}  Rb2 {[%clk 0:00:03]} 36. Kd3 {[%clk 0:00:41]}  Rb1 {[%clk 0:00:03]} 37. c4 {[%clk 0:00:38]}  Rb2 {[%clk 0:00:01]} 38. Rxb2 {[%clk 0:00:38]}  axb2 {[%clk 0:00:02]} 39. Kc2 {[%clk 0:00:39]}  Ke6 {[%clk 0:00:03]} 40. Kxb2 {[%clk 0:00:39]}  c5 {[%clk 0:00:04]} 41. Kc3 {[%clk 0:00:39]}  cxd4+ {[%clk 0:00:04]} 42. Kxd4 {[%clk 0:00:40]}  Kd6 {[%clk 0:00:05]} 43. a4 {[%clk 0:00:40]}  Kc6 {[%clk 0:00:05]} 44. a5 {[%clk 0:00:40]}  Kb7 {[%clk 0:00:05]} 45. Ke5 {[%clk 0:00:39]}  Kc6 {[%clk 0:00:04]} 46. Kf6 {[%clk 0:00:40]} 1-0


[Site "https://www.chess.com"]

[Event "Titled Tuesday Blitz August 22 Late 2023"]
[White "Hercegovac, Neven"]
[Black "Michalczak, Thomas"]
[WhiteFideId "2839135"]
[BlackFideId "4622634"]
[WhiteElo "2313"]
[BlackElo "2478"]
[Result "0-1"]
[Round "7"]
[TimeControl "180+1"]
[Date "2023.08.22"]
[WhiteClock "0:00:00"]
[BlackClock "0:00:31"]
[Board "115"]

1. d4 {[%clk 0:01:02]}  Nf6 {[%clk 0:02:57]} 2. Bf4 {[%clk 0:01:03]}  d5 {[%clk 0:02:46]} 3. e3 {[%clk 0:01:02]}  c5 {[%clk 0:02:46]} 4. Nf3 {[%clk 0:01:02]}  Nc6 {[%clk 0:02:45]} 5. Nbd2 {[%clk 0:01:02]}  Qb6 {[%clk 0:02:44]} 6. dxc5 {[%clk 0:01:03]}  Qxb2 {[%clk 0:02:43]} 7. Rb1 {[%clk 0:01:04]}  Qc3 {[%clk 0:02:43]} 8. Bb5 {[%clk 0:01:04]}  e6 {[%clk 0:02:35]} 9. O-O {[%clk 0:00:51]}  Be7 {[%clk 0:02:35]} 10. e4 {[%clk 0:00:49]}  dxe4 {[%clk 0:02:22]} 11. Ne5 {[%clk 0:00:25]}  Qxc5 {[%clk 0:02:10]} 12. Bxc6+ {[%clk 0:00:14]}  bxc6 {[%clk 0:02:10]} 13. Nb3 {[%clk 0:00:14]}  Qd5 {[%clk 0:02:03]} 14. Nd4 {[%clk 0:00:15]}  Bd7 {[%clk 0:01:46]} 15. c4 {[%clk 0:00:15]}  Qc5 {[%clk 0:01:36]} 16. Rb7 {[%clk 0:00:14]}  Rd8 {[%clk 0:01:34]} 17. Nb3 {[%clk 0:00:11]}  Qd6 {[%clk 0:01:28]} 18. Qe2 {[%clk 0:00:10]}  Bc8 {[%clk 0:01:14]} 19. Rxa7 {[%clk 0:00:08]}  Qb8 {[%clk 0:01:12]} 20. Nxc6 {[%clk 0:00:05]}  Qxa7 {[%clk 0:00:54]} 21. Nxa7 {[%clk 0:00:04]}  Bd7 {[%clk 0:00:55]} 22. Nb5 {[%clk 0:00:04]}  O-O {[%clk 0:00:55]} 23. Nd6 {[%clk 0:00:04]}  Bc6 {[%clk 0:00:51]} 24. c5 {[%clk 0:00:04]}  Nd5 {[%clk 0:00:50]} 25. Bg3 {[%clk 0:00:04]}  Nc3 {[%clk 0:00:49]} 26. Qc2 {[%clk 0:00:04]}  Bf6 {[%clk 0:00:47]} 27. h3 {[%clk 0:00:04]}  Ra8 {[%clk 0:00:45]} 28. Kh2 {[%clk 0:00:03]}  Rxa2 {[%clk 0:00:45]} 29. Qc1 {[%clk 0:00:03]}  Rb8 {[%clk 0:00:36]} 30. Nd2 {[%clk 0:00:03]}  Rbb2 {[%clk 0:00:35]} 31. N2c4 {[%clk 0:00:03]}  Rc2 {[%clk 0:00:34]} 32. Qf4 {[%clk 0:00:00]}  Ne2 {[%clk 0:00:31]} 0-1


[Site "https://www.chess.com"]

[Event "Titled Tuesday Blitz August 22 Late 2023"]
[White "tomobeast"]
[Black "Eggleston, Thomas A"]
[BlackFideId "412139"]
[WhiteElo "2223"]
[BlackElo "2447"]
[Result "0-1"]
[Round "7"]
[TimeControl "180+1"]
[Date "2023.08.22"]
[WhiteClock "0:00:15"]
[BlackClock "0:00:19"]
[Board "117"]

1. e4 {[%clk 0:01:06]}  e5 {[%clk 0:02:58]} 2. Nf3 {[%clk 0:01:04]}  Nf6 {[%clk 0:02:57]} 3. Nxe5 {[%clk 0:00:57]}  d6 {[%clk 0:02:58]} 4. Nf3 {[%clk 0:00:57]}  Nxe4 {[%clk 0:02:58]} 5. c4 {[%clk 0:00:55]}  Ng5 {[%clk 0:02:55]} 6. d4 {[%clk 0:00:51]}  Nxf3+ {[%clk 0:02:54]} 7. Qxf3 {[%clk 0:00:52]}  Be7 {[%clk 0:02:53]} 8. Nc3 {[%clk 0:00:52]}  c6 {[%clk 0:02:49]} 9. Bd3 {[%clk 0:00:51]}  O-O {[%clk 0:02:46]} 10. O-O {[%clk 0:00:46]}  Nd7 {[%clk 0:02:41]} 11. Re1 {[%clk 0:00:43]}  Nf6 {[%clk 0:02:39]} 12. Bg5 {[%clk 0:00:41]}  h6 {[%clk 0:02:33]} 13. Bd2 {[%clk 0:00:33]}  Bg4 {[%clk 0:02:16]} 14. Qg3 {[%clk 0:00:26]}  Kh8 {[%clk 0:02:12]} 15. Qf4 {[%clk 0:00:25]}  d5 {[%clk 0:02:08]} 16. cxd5 {[%clk 0:00:24]}  cxd5 {[%clk 0:02:07]} 17. h3 {[%clk 0:00:24]}  Bd6 {[%clk 0:02:04]} 18. Qe3 {[%clk 0:00:24]}  Be6 {[%clk 0:02:01]} 19. Qe2 {[%clk 0:00:21]}  Re8 {[%clk 0:02:00]} 20. Qf3 {[%clk 0:00:21]}  Rc8 {[%clk 0:01:54]} 21. Re2 {[%clk 0:00:22]}  Bb8 {[%clk 0:01:45]} 22. Rae1 {[%clk 0:00:21]}  Qd6 {[%clk 0:01:43]} 23. g3 {[%clk 0:00:21]}  Ng8 {[%clk 0:01:17]} 24. Bf4 {[%clk 0:00:20]}  Qd7 {[%clk 0:01:17]} 25. Bxb8 {[%clk 0:00:16]}  Rxb8 {[%clk 0:01:17]} 26. g4 {[%clk 0:00:17]}  a6 {[%clk 0:01:15]} 27. Bf5 {[%clk 0:00:15]}  Nf6 {[%clk 0:01:09]} 28. Bxe6 {[%clk 0:00:13]}  fxe6 {[%clk 0:01:08]} 29. Qf4 {[%clk 0:00:13]}  Rbc8 {[%clk 0:01:03]} 30. g5 {[%clk 0:00:13]}  hxg5 {[%clk 0:01:02]} 31. Qxg5 {[%clk 0:00:14]}  Qf7 {[%clk 0:00:56]} 32. f4 {[%clk 0:00:14]}  Nh5 {[%clk 0:00:50]} 33. f5 {[%clk 0:00:12]}  exf5 {[%clk 0:00:37]} 34. Rxe8+ {[%clk 0:00:12]}  Rxe8 {[%clk 0:00:37]} 35. Rxe8+ {[%clk 0:00:13]}  Qxe8 {[%clk 0:00:37]} 36. Qxf5 {[%clk 0:00:13]}  Qe3+ {[%clk 0:00:28]} 37. Qf2 {[%clk 0:00:14]}  Qg5+ {[%clk 0:00:25]} 38. Kh2 {[%clk 0:00:13]}  Nf4 {[%clk 0:00:24]} 39. Ne2 {[%clk 0:00:13]}  Nd3 {[%clk 0:00:23]} 40. Qf8+ {[%clk 0:00:12]}  Kh7 {[%clk 0:00:22]} 41. Ng3 {[%clk 0:00:12]}  Qd2+ {[%clk 0:00:22]} 42. Kh1 {[%clk 0:00:11]}  Nf2+ {[%clk 0:00:22]} 43. Kg2 {[%clk 0:00:12]}  Ng4+ {[%clk 0:00:20]} 44. Kf3 {[%clk 0:00:11]}  Qf2+ {[%clk 0:00:19]} 45. Kxg4 {[%clk 0:00:10]}  Qxf8 {[%clk 0:00:19]} 46. Nf5 {[%clk 0:00:11]}  g6 {[%clk 0:00:19]} 47. Ng3 {[%clk 0:00:08]}  Qf2 {[%clk 0:00:18]} 48. h4 {[%clk 0:00:09]}  Qxb2 {[%clk 0:00:18]} 49. h5 {[%clk 0:00:09]}  Qxd4+ {[%clk 0:00:17]} 50. Kh3 {[%clk 0:00:08]}  Qe3 {[%clk 0:00:16]} 51. Kh4 {[%clk 0:00:08]}  Qxg3+ {[%clk 0:00:15]} 52. Kxg3 {[%clk 0:00:08]}  gxh5 {[%clk 0:00:15]} 53. Kh4 {[%clk 0:00:09]}  d4 {[%clk 0:00:16]} 54. Kxh5 {[%clk 0:00:10]}  d3 {[%clk 0:00:16]} 55. Kg4 {[%clk 0:00:11]}  d2 {[%clk 0:00:16]} 56. Kf4 {[%clk 0:00:12]}  d1=Q {[%clk 0:00:17]} 57. Ke3 {[%clk 0:00:13]}  Qc2 {[%clk 0:00:17]} 58. Kd4 {[%clk 0:00:13]}  Qxa2 {[%clk 0:00:17]} 59. Ke5 {[%clk 0:00:13]}  Qc4 {[%clk 0:00:17]} 60. Kd6 {[%clk 0:00:14]}  b5 {[%clk 0:00:17]} 61. Kd7 {[%clk 0:00:15]}  b4 {[%clk 0:00:17]} 62. Kd6 {[%clk 0:00:16]}  a5 {[%clk 0:00:18]} 63. Kd7 {[%clk 0:00:17]}  a4 {[%clk 0:00:18]} 64. Kd6 {[%clk 0:00:15]}  a3 {[%clk 0:00:19]} 0-1


[Site "https://www.chess.com"]

[Event "Titled Tuesday Blitz August 22 Late 2023"]
[White "Rangel, Daniel"]
[Black "Haydon, David L"]
[WhiteFideId "2124475"]
[BlackFideId "415405"]
[WhiteElo "2445"]
[BlackElo "2697"]
[Result "0-1"]
[Round "7"]
[TimeControl "180+1"]
[Date "2023.08.22"]
[WhiteClock "0:00:00"]
[BlackClock "0:01:45"]
[Board "118"]

1. d4 {[%clk 0:02:59]}  f5 {[%clk 0:02:59]} 2. g4 {[%clk 0:02:53]}  e6 {[%clk 0:02:55]} 3. h3 {[%clk 0:02:49]}  Nf6 {[%clk 0:02:54]} 4. Nc3 {[%clk 0:02:43]}  d5 {[%clk 0:02:52]} 5. Bg5 {[%clk 0:02:29]}  Be7 {[%clk 0:02:49]} 6. Qd2 {[%clk 0:02:24]}  c6 {[%clk 0:02:48]} 7. O-O-O {[%clk 0:02:23]}  O-O {[%clk 0:02:46]} 8. Nf3 {[%clk 0:02:18]}  Ne4 {[%clk 0:02:44]} 9. Nxe4 {[%clk 0:02:13]}  fxe4 {[%clk 0:02:43]} 10. Bxe7 {[%clk 0:02:13]}  Qxe7 {[%clk 0:02:42]} 11. Ne5 {[%clk 0:02:11]}  Rxf2 {[%clk 0:02:41]} 12. Qe3 {[%clk 0:02:09]}  Rf8 {[%clk 0:02:41]} 13. Bg2 {[%clk 0:02:06]}  Nd7 {[%clk 0:02:41]} 14. Nxd7 {[%clk 0:02:04]}  Bxd7 {[%clk 0:02:41]} 15. Rdf1 {[%clk 0:02:05]}  Rxf1+ {[%clk 0:02:40]} 16. Rxf1 {[%clk 0:02:04]}  Rf8 {[%clk 0:02:39]} 17. Rxf8+ {[%clk 0:02:04]}  Qxf8 {[%clk 0:02:39]} 18. Qg3 {[%clk 0:02:04]}  Qb4 {[%clk 0:02:36]} 19. c3 {[%clk 0:01:44]}  Qf8 {[%clk 0:02:34]} 20. Kc2 {[%clk 0:01:40]}  c5 {[%clk 0:02:32]} 21. dxc5 {[%clk 0:01:35]}  Ba4+ {[%clk 0:02:32]} 22. b3 {[%clk 0:01:34]}  Bc6 {[%clk 0:02:31]} 23. Qe5 {[%clk 0:01:27]}  Kf7 {[%clk 0:02:28]} 24. g5 {[%clk 0:01:13]}  Qxc5 {[%clk 0:02:26]} 25. Qc7+ {[%clk 0:01:05]}  Qe7 {[%clk 0:02:25]} 26. Qf4+ {[%clk 0:01:05]}  Kg8 {[%clk 0:02:23]} 27. h4 {[%clk 0:01:05]}  e5 {[%clk 0:02:20]} 28. Qf5 {[%clk 0:01:00]}  g6 {[%clk 0:02:18]} 29. Qf2 {[%clk 0:00:59]}  a6 {[%clk 0:02:13]} 30. Bh3 {[%clk 0:00:58]}  Kg7 {[%clk 0:02:12]} 31. Kb2 {[%clk 0:00:55]}  Qd6 {[%clk 0:02:09]} 32. a4 {[%clk 0:00:53]}  d4 {[%clk 0:02:08]} 33. c4 {[%clk 0:00:30]}  d3 {[%clk 0:02:02]} 34. exd3 {[%clk 0:00:22]}  exd3 {[%clk 0:02:00]} 35. Kc3 {[%clk 0:00:18]}  e4 {[%clk 0:01:59]} 36. Bg4 {[%clk 0:00:09]}  Qe5+ {[%clk 0:01:54]} 37. Qd4 {[%clk 0:00:09]}  Qxd4+ {[%clk 0:01:54]} 38. Kxd4 {[%clk 0:00:10]}  a5 {[%clk 0:01:52]} 39. Bc8 {[%clk 0:00:05]}  Kf7 {[%clk 0:01:50]} 40. Bg4 {[%clk 0:00:05]}  Ke7 {[%clk 0:01:50]} 41. Bh3 {[%clk 0:00:05]}  Kd6 {[%clk 0:01:50]} 42. Bg2 {[%clk 0:00:04]}  d2 {[%clk 0:01:49]} 43. Ke3 {[%clk 0:00:02]}  d1=Q {[%clk 0:01:46]} 44. Kf4 {[%clk 0:00:00]}  Qd2+ {[%clk 0:01:45]} 0-1


[Site "https://www.chess.com"]

[Event "Titled Tuesday Blitz August 22 Late 2023"]
[White "Fajdetic, Hrvoje"]
[Black "reevecanada"]
[WhiteFideId "14501945"]
[WhiteElo "2270"]
[BlackElo "2527"]
[Result "1-0"]
[Round "7"]
[TimeControl "180+1"]
[Date "2023.08.22"]
[WhiteClock "0:00:38"]
[BlackClock "0:01:59"]
[Board "119"]

1. f4 {[%clk 0:02:57]}  e5 {[%clk 0:02:57]} 2. fxe5 {[%clk 0:02:58]}  d6 {[%clk 0:02:56]} 3. exd6 {[%clk 0:02:58]}  Bxd6 {[%clk 0:02:56]} 4. Nf3 {[%clk 0:02:58]}  g5 {[%clk 0:02:57]} 5. g3 {[%clk 0:02:58]}  g4 {[%clk 0:02:56]} 6. Nh4 {[%clk 0:02:58]}  Ne7 {[%clk 0:02:57]} 7. Nc3 {[%clk 0:02:45]}  Ng6 {[%clk 0:02:57]} 8. Ng2 {[%clk 0:02:45]}  h5 {[%clk 0:02:55]} 9. d4 {[%clk 0:02:19]}  h4 {[%clk 0:02:52]} 10. gxh4 {[%clk 0:02:05]}  Nxh4 {[%clk 0:02:50]} 11. Ne4 {[%clk 0:01:56]}  Nxg2+ {[%clk 0:02:42]} 12. Bxg2 {[%clk 0:01:57]}  Qh4+ {[%clk 0:02:41]} 13. Kf1 {[%clk 0:01:54]}  Bxh2 {[%clk 0:02:32]} 14. Bf4 {[%clk 0:01:33]}  Bxf4 {[%clk 0:02:14]} 15. Rxh4 {[%clk 0:01:31]}  Rxh4 {[%clk 0:02:15]} 16. e3 {[%clk 0:01:18]}  Bh6 {[%clk 0:02:12]} 17. Qe1 {[%clk 0:01:08]}  Rh5 {[%clk 0:02:10]} 18. Nf6+ {[%clk 0:01:07]}  Kf8 {[%clk 0:02:06]} 19. Nxh5 {[%clk 0:01:08]}  c6 {[%clk 0:02:05]} 20. Qh4 {[%clk 0:01:05]}  Kg8 {[%clk 0:02:02]} 21. Qd8+ {[%clk 0:01:03]}  Kh7 {[%clk 0:02:03]} 22. Qxc8 {[%clk 0:01:02]}  Kg6 {[%clk 0:02:02]} 23. Qxb7 {[%clk 0:00:56]}  Kxh5 {[%clk 0:02:02]} 24. Qxa8 {[%clk 0:00:53]}  Nd7 {[%clk 0:02:02]} 25. Qxc6 {[%clk 0:00:51]}  Nf8 {[%clk 0:01:59]} 26. Ke2 {[%clk 0:00:44]}  f5 {[%clk 0:01:58]} 27. Rh1+ {[%clk 0:00:40]}  Kg5 {[%clk 0:01:59]} 28. Qxh6# {[%clk 0:00:38]} 1-0


[Site "https://www.chess.com"]

[Event "Titled Tuesday Blitz August 22 Late 2023"]
[White "Senft, Sean"]
[Black "Ismayil, Malak"]
[WhiteFideId "2044960"]
[BlackFideId "13412604"]
[WhiteElo "2343"]
[BlackElo "2500"]
[Result "1-0"]
[Round "7"]
[TimeControl "180+1"]
[Date "2023.08.22"]
[WhiteClock "0:01:23"]
[BlackClock "0:00:21"]
[Board "121"]

1. d4 {[%clk 0:03:00]}  Nf6 {[%clk 0:02:58]} 2. c4 {[%clk 0:03:00]}  e6 {[%clk 0:02:58]} 3. Nc3 {[%clk 0:03:00]}  d5 {[%clk 0:02:58]} 4. cxd5 {[%clk 0:03:01]}  exd5 {[%clk 0:02:59]} 5. Bg5 {[%clk 0:03:01]}  Be7 {[%clk 0:02:59]} 6. e3 {[%clk 0:03:01]}  O-O {[%clk 0:03:00]} 7. Bd3 {[%clk 0:03:00]}  c6 {[%clk 0:03:01]} 8. Nf3 {[%clk 0:03:00]}  h6 {[%clk 0:03:01]} 9. Bh4 {[%clk 0:03:00]}  Bg4 {[%clk 0:02:58]} 10. Qc2 {[%clk 0:03:00]}  Nbd7 {[%clk 0:02:57]} 11. O-O {[%clk 0:02:58]}  Bxf3 {[%clk 0:02:51]} 12. gxf3 {[%clk 0:02:57]}  Nh5 {[%clk 0:02:52]} 13. Bg3 {[%clk 0:02:48]}  Rc8 {[%clk 0:02:26]} 14. Kh1 {[%clk 0:02:28]}  b5 {[%clk 0:02:08]} 15. Rg1 {[%clk 0:02:19]}  Nb6 {[%clk 0:02:06]} 16. b3 {[%clk 0:02:16]}  Qd7 {[%clk 0:02:00]} 17. Qe2 {[%clk 0:02:05]}  f5 {[%clk 0:01:51]} 18. Be5 {[%clk 0:02:04]}  Bf6 {[%clk 0:01:24]} 19. f4 {[%clk 0:02:04]}  Bxe5 {[%clk 0:01:24]} 20. Qxh5 {[%clk 0:02:04]}  Bc7 {[%clk 0:01:17]} 21. Qxh6 {[%clk 0:02:01]}  b4 {[%clk 0:01:15]} 22. Ne2 {[%clk 0:01:46]}  Rf7 {[%clk 0:01:14]} 23. Rg5 {[%clk 0:01:44]}  Kf8 {[%clk 0:01:12]} 24. Qg6 {[%clk 0:01:36]}  Re8 {[%clk 0:00:53]} 25. Bxf5 {[%clk 0:01:28]}  Qe7 {[%clk 0:00:48]} 26. Rag1 {[%clk 0:01:25]}  Bd8 {[%clk 0:00:41]} 27. Qh7 {[%clk 0:01:25]}  Qf6 {[%clk 0:00:21]} 28. Bg6 {[%clk 0:01:23]} 1-0


[Site "https://www.chess.com"]

[Event "Titled Tuesday Blitz August 22 Late 2023"]
[White "Sanchez Castillo, Sarai Carolina"]
[Black "Ansh M Shah"]
[WhiteFideId "3900754"]
[BlackFideId "25033379"]
[WhiteElo "2343"]
[BlackElo "2497"]
[Result "1-0"]
[Round "7"]
[TimeControl "180+1"]
[Date "2023.08.22"]
[WhiteClock "0:00:18"]
[BlackClock "0:00:20"]
[Board "122"]

1. e4 {[%clk 0:02:57]}  c5 {[%clk 0:02:32]} 2. Nf3 {[%clk 0:02:55]}  Nc6 {[%clk 0:02:31]} 3. Nc3 {[%clk 0:02:55]}  g6 {[%clk 0:02:31]} 4. d4 {[%clk 0:02:50]}  cxd4 {[%clk 0:02:32]} 5. Nxd4 {[%clk 0:02:51]}  Bg7 {[%clk 0:02:33]} 6. Be3 {[%clk 0:02:51]}  Nf6 {[%clk 0:02:32]} 7. Be2 {[%clk 0:02:51]}  d6 {[%clk 0:02:32]} 8. O-O {[%clk 0:02:48]}  O-O {[%clk 0:02:33]} 9. f4 {[%clk 0:02:48]}  e5 {[%clk 0:02:27]} 10. Nxc6 {[%clk 0:02:42]}  bxc6 {[%clk 0:02:28]} 11. fxe5 {[%clk 0:02:42]}  dxe5 {[%clk 0:02:29]} 12. Qxd8 {[%clk 0:02:42]}  Rxd8 {[%clk 0:02:30]} 13. Bg5 {[%clk 0:02:41]}  Rd6 {[%clk 0:02:27]} 14. Rad1 {[%clk 0:02:33]}  Rxd1 {[%clk 0:02:27]} 15. Bxd1 {[%clk 0:02:22]}  Nd7 {[%clk 0:02:11]} 16. Be2 {[%clk 0:02:14]}  Nb6 {[%clk 0:02:10]} 17. a4 {[%clk 0:02:08]}  Be6 {[%clk 0:02:09]} 18. b3 {[%clk 0:02:05]}  h6 {[%clk 0:02:05]} 19. Be3 {[%clk 0:02:00]}  Nd7 {[%clk 0:02:05]} 20. a5 {[%clk 0:01:55]}  Bf8 {[%clk 0:02:05]} 21. Na4 {[%clk 0:01:55]}  Kg7 {[%clk 0:02:01]} 22. h3 {[%clk 0:01:32]}  Bb4 {[%clk 0:01:58]} 23. a6 {[%clk 0:01:27]}  f5 {[%clk 0:01:28]} 24. Rd1 {[%clk 0:00:59]}  Kf7 {[%clk 0:01:08]} 25. Bc4 {[%clk 0:00:44]}  Bxc4 {[%clk 0:01:01]} 26. Rxd7+ {[%clk 0:00:35]}  Ke6 {[%clk 0:01:00]} 27. Rb7 {[%clk 0:00:21]}  Bb5 {[%clk 0:00:51]} 28. c4 {[%clk 0:00:18]}  Bxa4 {[%clk 0:00:20]} 29. Rxb4 {[%clk 0:00:18]} 1-0


[Site "https://www.chess.com"]